fUSD/lending_fUSD_20260615
["ID","MTS","AMOUNT","RATE_DAILY","PERIOD"]
[425096810,1781491838000,-300.02,0.00016525,2]
[425096809,1781491838000,-300.02,0.00016482,2]
[425096811,1781491838000,-300.02,0.00016568,2]
[425096812,1781491838000,-300.02,0.00016609,2]
[425096814,1781491838000,-1613.0535,0.00016662,2]
[425096813,1781491838000,-300.02,0.00016648,2]
[425096817,1781491838000,-300.02,0.00016724,2]
[425096816,1781491838000,-168.6,0.00016712,2]
[425096815,1781491838000,-300.02,0.00016687,2]
[425096819,1781491838000,-166.66,0.00016762,2]
[425096838,1781491838000,-169.98,0.00017499,2]
[425096826,1781491838000,-3179.86786854,0.0001709,2]
[425096842,1781491838000,-1428.12007757,0.00017758,2]
[425096874,1781491838000,-500.0,0.00019454,2]
[425096870,1781491838000,-33290.518,0.00019355,2]
[425096872,1781491838000,-1934.38338736,0.00019402,2]
[425096896,1781491838000,-1409.0,0.00019455,2]
[425096898,1781491838000,-11090.00749404,0.00019455,2]
[425096900,1781491838000,-593.0,0.00019469,5]
[425096903,1781491838000,-3179.86786846,0.00019674,2]
[425096905,1781491838000,-1305.20462625,0.000199,2]
[425096907,1781491838000,-2005.9555727,0.0001995,2]
[425096913,1781491838000,-500.0,0.00019999,2]
[425096918,1781491838000,-93611.04,0.0002,2]
[425096916,1781491838000,-400.0,0.0002,2]
[425096909,1781491838000,-593.20420191,0.00019999,2]
[425096920,1781491838000,-200.0,0.0002,2]
[425096924,1781491838000,-182.0,0.0002,2]
[425096922,1781491838000,-1418.689983,0.0002,2]
[425096841,1781491838000,-281.6393173,0.00017758,2]
[425096868,1781491838000,-641.07457963,0.00019339,7]
[425096877,1781491838000,-5829.5837921,0.00019455,2]
[425096911,1781491838000,-500.0,0.00019999,2]
[425096864,1781491838000,-2327.0,0.000193,2]
[425096844,1781491838000,-3179.86786846,0.00017951,2]
[425096866,1781491838000,-1000.0,0.000193,2]
[425096843,1781491838000,-155.1,0.0001788,2]
[425096846,1781491838000,-350.0,0.00018,2]
[425096847,1781491838000,-177.08402624,0.00018222,2]
[425096845,1781491838000,-404.74,0.0001797,2]
[425096850,1781491838000,-961.7,0.0001841,2]
[425096851,1781491838000,-185.13,0.00018445,2]
[425096849,1781491838000,-1798.80895522,0.00018306,2]
[425096848,1781491838000,-436.0,0.00018233,5]
[425096855,1781491838000,-217.43655832,0.0001889,3]
[425096853,1781491838000,-1865.36488656,0.00018854,2]
[425096857,1781491838000,-288.16,0.00018913,2]
[425096860,1781491838000,-1438.06,0.00019052,2]
[425096858,1781491838000,-227.0,0.00019,2]
[425096859,1781491838000,-310.0,0.00019,2]
[425096852,1781491838000,-3179.86786846,0.00018813,2]
[425096862,1781491838000,-2500.0,0.00019255,2]
[425096971,1781491839000,-151.0,0.00020498,2]
[425096970,1781491839000,-154.67963625,0.00020498,2]
[425096968,1781491839000,-1235.18214925,0.00020498,2]
[425096966,1781491839000,-151.0,0.00020498,2]
[425096964,1781491839000,-1191.11104074,0.00020498,2]
[425096962,1781491839000,-1148.61238259,0.00020498,2]
[425096963,1781491839000,-151.0,0.00020498,2]
[425096960,1781491839000,-1107.63007,0.00020498,2]
[425096956,1781491839000,-1352.00387124,0.000204,2]
[425096967,1781491839000,-151.0,0.00020498,2]
[425096959,1781491839000,-1068.11,0.00020498,2]
[425096961,1781491839000,-209.40437684,0.00020498,2]
[425096965,1781491839000,-358.31816607,0.00020498,2]
[425096978,1781491839000,-1428.38747117,0.00020498,2]
[425096972,1781491839000,-1280.88388877,0.00020498,2]
[425096975,1781491839000,-1328.27659266,0.00020498,2]
[425096974,1781491839000,-151.0,0.00020498,2]
[425096973,1781491839000,-174.61919141,0.00020498,2]
[425096976,1781491839000,-1377.42282658,0.00020498,2]
[425096980,1781491839000,-151.0,0.00020498,2]
[425096977,1781491839000,-151.0,0.00020498,2]
[425096979,1781491839000,-578.20924308,0.00020498,2]
[425096981,1781491839000,-1481.2378076,0.00020498,2]
[425096983,1781491839000,-1536.04360648,0.00020498,2]
[425096982,1781491839000,-151.0,0.00020498,2]
[425096958,1781491839000,-470.21437661,0.00020498,2]
[425096985,1781491839000,-209.40437684,0.00020498,2]
[425096969,1781491839000,-200.0,0.00020498,2]
[425096955,1781491839000,-961.7,0.00020381,2]
[425096936,1781491839000,-157.0,0.0002,2]
[425096954,1781491839000,-2669.47,0.00020317,2]
[425096984,1781491839000,-209.40437684,0.00020498,2]
[425096926,1781491839000,-173.53935065,0.0002,2]
[425096928,1781491839000,-660.0,0.0002,2]
[425096929,1781491839000,-1479.0,0.0002,2]
[425096930,1781491839000,-255.0,0.0002,2]
[425096933,1781491839000,-156.0,0.0002,2]
[425096931,1781491839000,-268.0,0.0002,2]
[425096932,1781491839000,-924.0,0.0002,2]
[425096935,1781491839000,-449.0,0.0002,2]
[425096934,1781491839000,-200.0,0.0002,10]
[425096938,1781491839000,-275.0,0.0002,2]
[425096940,1781491839000,-618.0,0.0002,2]
[425096937,1781491839000,-241.0,0.0002,2]
[425096939,1781491839000,-227.0,0.0002,2]
[425096941,1781491839000,-1932.0,0.0002,2]
[425096943,1781491839000,-3558.0,0.0002019,2]
[425096942,1781491839000,-300.0,0.000201,10]
[425096947,1781491839000,-383.0,0.0002019,2]
[425096944,1781491839000,-1359.0,0.0002019,2]
[425096945,1781491839000,-1275.0,0.0002019,2]
[425096946,1781491839000,-631.0,0.0002019,2]
[425096948,1781491839000,-1228.0,0.0002019,2]
[425096951,1781491839000,-3645.0,0.0002019,2]
[425096952,1781491839000,-173.53935065,0.000202,2]
[425096950,1781491839000,-934.0,0.0002019,2]
[425096949,1781491839000,-150.0,0.0002019,2]
[425096953,1781491839000,-404.74,0.00020216,2]
[425096957,1781491839000,-1030.0,0.00020498,2]
[425096987,1781491839000,-151.0,0.00020498,2]
[425097012,1781491839000,-152.0,0.00020498,2]
[425096986,1781491839000,-151.0,0.00020498,2]
[425097022,1781491839000,-500.0,0.00020498,2]
[425097021,1781491839000,-152.0,0.00020498,2]
[425097023,1781491839000,-500.0,0.00020498,2]
[425097025,1781491839000,-151.0,0.00020498,2]
[425097024,1781491839000,-151.0,0.00020498,2]
[425097026,1781491839000,-152.0,0.00020498,2]
[425097027,1781491839000,-500.0,0.00020498,2]
[425097028,1781491839000,-500.0,0.00020498,2]
[425097029,1781491839000,-151.0,0.00020498,2]
[425097031,1781491839000,-152.0,0.00020498,2]
[425097030,1781491839000,-151.0,0.00020498,2]
[425097032,1781491839000,-500.0,0.00020498,2]
[425097034,1781491839000,-151.0,0.00020498,2]
[425097037,1781491839000,-500.0,0.00020498,2]
[425097035,1781491839000,-151.0,0.00020498,2]
[425097033,1781491839000,-500.0,0.00020498,2]
[425097036,1781491839000,-152.0,0.00020498,2]
[425097039,1781491839000,-151.0,0.00020498,2]
[425097038,1781491839000,-151.0,0.00020498,2]
[425097040,1781491839000,-152.0,0.00020498,2]
[425097041,1781491839000,-500.0,0.00020498,2]
[425097042,1781491839000,-151.0,0.00020498,2]
[425097044,1781491839000,-152.0,0.00020498,2]
[425097043,1781491839000,-151.0,0.00020498,2]
[425097046,1781491839000,-151.0,0.00020498,2]
[425097045,1781491839000,-500.0,0.00020498,2]
[425096988,1781491839000,-1592.87721992,0.00020498,2]
[425097020,1781491839000,-151.0,0.00020498,2]
[425097018,1781491839000,-500.0,0.00020498,2]
[425097047,1781491839000,-151.0,0.00020498,2]
[425097016,1781491839000,-152.0,0.00020498,2]
[425097019,1781491839000,-151.0,0.00020498,2]
[425096989,1781491839000,-500.0,0.00020498,2]
[425096991,1781491839000,-731.92164327,0.00020498,2]
[425096992,1781491839000,-151.0,0.00020498,2]
[425096995,1781491839000,-151.0,0.00020498,2]
[425096994,1781491839000,-151.0,0.00020498,2]
[425096993,1781491839000,-500.0,0.00020498,2]
[425096997,1781491839000,-500.0,0.00020498,2]
[425096996,1781491839000,-152.0,0.00020498,2]
[425096998,1781491839000,-151.0,0.00020498,2]
[425097000,1781491839000,-152.0,0.00020498,2]
[425096999,1781491839000,-151.0,0.00020498,2]
[425097002,1781491839000,-151.0,0.00020498,2]
[425097001,1781491839000,-500.0,0.00020498,2]
[425096990,1781491839000,-2080.17592889,0.00020498,2]
[425097003,1781491839000,-500.0,0.00020498,2]
[425097004,1781491839000,-151.0,0.00020498,2]
[425097006,1781491839000,-151.0,0.00020498,2]
[425097008,1781491839000,-500.0,0.00020498,2]
[425097007,1781491839000,-152.0,0.00020498,2]
[425097010,1781491839000,-151.0,0.00020498,2]
[425097009,1781491839000,-500.0,0.00020498,2]
[425097011,1781491839000,-151.0,0.00020498,2]
[425097005,1781491839000,-500.0,0.00020498,2]
[425097013,1781491839000,-721.12765534,0.00020498,2]
[425097015,1781491839000,-151.0,0.00020498,2]
[425097017,1781491839000,-500.0,0.00020498,2]
[425097014,1781491839000,-500.0,0.00020498,2]
[425097092,1781491840000,-470.21437661,0.00021046,2]
[425097089,1781491840000,-618.0,0.00021,2]
[425097091,1781491840000,-275.0,0.00021042,2]
[425097087,1781491840000,-275.0,0.00021,2]
[425097082,1781491840000,-924.0,0.00021,2]
[425097086,1781491840000,-241.0,0.00021,2]
[425097085,1781491840000,-157.0,0.00021,2]
[425097083,1781491840000,-156.0,0.00021,2]
[425097084,1781491840000,-449.0,0.00021,2]
[425097081,1781491840000,-268.0,0.00021,2]
[425097088,1781491840000,-227.0,0.00021,2]
[425097090,1781491840000,-1932.0,0.00021,2]
[425097098,1781491840000,-217.15233878,0.00021046,2]
[425097093,1781491840000,-217.15233878,0.00021046,2]
[425097095,1781491840000,-154.67963625,0.00021046,2]
[425097096,1781491840000,-200.0,0.00021046,2]
[425097105,1781491840000,-206.547,0.00021261,2]
[425097104,1781491840000,-760.56457425,0.000212,2]
[425097103,1781491840000,-151.0,0.00021048,2]
[425097102,1781491840000,-358.31816616,0.00021048,2]
[425097100,1781491840000,-2157.14243826,0.00021046,2]
[425097097,1781491840000,-181.08010149,0.00021046,2]
[425097101,1781491840000,-151.0,0.00021046,2]
[425097099,1781491840000,-151.0,0.00021046,2]
[425097080,1781491840000,-255.0,0.00021,2]
[425097108,1781491840000,-454.0331555,0.00021265,7]
[425097094,1781491840000,-151.0,0.00021046,2]
[425097078,1781491840000,-182.0,0.00021,2]
[425097063,1781491840000,-358.31816607,0.00020828,2]
[425097076,1781491840000,-200.0,0.00021,2]
[425097109,1781491840000,-679.20644669,0.00021265,7]
[425097048,1781491840000,-500.0,0.00020498,2]
[425097049,1781491840000,-151.0,0.00020498,2]
[425097050,1781491840000,-500.0,0.00020498,2]
[425097051,1781491840000,-3179.86786846,0.00020535,2]
[425097052,1781491840000,-358.31816607,0.00020553,2]
[425097053,1781491840000,-151.0,0.00020553,2]
[425097054,1781491840000,-358.31816607,0.00020608,2]
[425097055,1781491840000,-151.0,0.00020608,2]
[425097056,1781491840000,-358.31816607,0.00020663,2]
[425097057,1781491840000,-151.0,0.00020663,2]
[425097059,1781491840000,-151.0,0.00020718,2]
[425097060,1781491840000,-358.31816607,0.00020773,2]
[425097061,1781491840000,-151.0,0.00020773,2]
[425097058,1781491840000,-358.31816607,0.00020718,2]
[425097064,1781491840000,-151.0,0.00020828,2]
[425097062,1781491840000,-288.16,0.00020804,2]
[425097066,1781491840000,-358.31816607,0.00020883,2]
[425097068,1781491840000,-1352.00387117,0.00020894,2]
[425097065,1781491840000,-200.0,0.00020835,2]
[425097069,1781491840000,-1519.93,0.000209,7]
[425097067,1781491840000,-151.0,0.00020883,2]
[425097071,1781491840000,-358.31816607,0.00020938,2]
[425097073,1781491840000,-358.31816607,0.00020993,2]
[425097072,1781491840000,-151.0,0.00020938,2]
[425097074,1781491840000,-151.0,0.00020993,2]
[425097075,1781491840000,-760.56457425,0.00021,2]
[425097079,1781491840000,-660.0,0.00021,2]
[425097107,1781491840000,-257.37111583,0.00021265,7]
[425097077,1781491840000,-1418.689983,0.00021,2]
[425097110,1781491840000,-918.9873,0.00021265,7]
[425097139,1781491840000,-800.0,0.00021918,2]
[425097144,1781491840000,-800.0,0.00021918,2]
[425097143,1781491840000,-800.0,0.00021918,2]
[425097145,1781491840000,-873.93512374,0.00021918,2]
[425097147,1781491840000,-500.0,0.00021999,2]
[425097146,1781491840000,-150.0,0.00021918,2]
[425097149,1781491840000,-200.0,0.00022,2]
[425097148,1781491840000,-450.0,0.00022,2]
[425097150,1781491840000,-1418.689983,0.00022,2]
[425097151,1781491840000,-182.0,0.00022,2]
[425097155,1781491840000,-924.0,0.00022,2]
[425097152,1781491840000,-660.0,0.00022,2]
[425097153,1781491840000,-255.0,0.00022,2]
[425097154,1781491840000,-268.0,0.00022,2]
[425097156,1781491840000,-156.0,0.00022,2]
[425097158,1781491840000,-170.11765912,0.00022,2]
[425097159,1781491840000,-241.0,0.00022,2]
[425097160,1781491840000,-275.0,0.00022,2]
[425097157,1781491840000,-449.0,0.00022,2]
[425097161,1781491840000,-2428.0,0.00022,2]
[425097168,1781491840000,-154.67963625,0.00022142,2]
[425097166,1781491840000,-470.21437661,0.00022142,2]
[425097164,1781491840000,-1309.79,0.00022,2]
[425097163,1781491840000,-618.0,0.00022,2]
[425097162,1781491840000,-227.0,0.00022,2]
[425097167,1781491840000,-280.16800983,0.00022142,2]
[425097106,1781491840000,-3178.719,0.00021261,2]
[425097141,1781491840000,-800.0,0.00021918,2]
[425097169,1781491840000,-200.0,0.00022142,2]
[425097165,1781491840000,-1932.0,0.00022,2]
[425097136,1781491840000,-800.0,0.00021918,2]
[425097140,1781491840000,-800.0,0.00021918,2]
[425097112,1781491840000,-1352.00387117,0.00021387,2]
[425097111,1781491840000,-1305.20462618,0.000213,2]
[425097117,1781491840000,-225.18697532,0.00021594,2]
[425097115,1781491840000,-397.0,0.00021432,2]
[425097114,1781491840000,-760.56457425,0.000214,2]
[425097116,1781491840000,-470.21437661,0.00021594,2]
[425097118,1781491840000,-265.50557866,0.00021594,2]
[425097119,1781491840000,-154.67963625,0.00021594,2]
[425097121,1781491840000,-187.78006524,0.00021594,2]
[425097120,1781491840000,-200.0,0.00021594,2]
[425097128,1781491840000,-217.15233878,0.00021867,2]
[425097126,1781491840000,-760.56457425,0.000216,2]
[425097129,1781491840000,-169.98,0.00021873,2]
[425097113,1781491840000,-3179.86786846,0.00021397,2]
[425097123,1781491840000,-151.0,0.00021594,2]
[425097124,1781491840000,-2236.95670847,0.00021594,2]
[425097138,1781491840000,-800.0,0.00021918,2]
[425097135,1781491840000,-800.0,0.00021918,2]
[425097133,1781491840000,-5000.0,0.00021918,2]
[425097134,1781491840000,-800.0,0.00021918,2]
[425097137,1781491840000,-350.53557048,0.00021918,2]
[425097132,1781491840000,-760.56457425,0.000219,2]
[425097130,1781491840000,-1352.00387117,0.00021881,2]
[425097131,1781491840000,-413.0,0.00021883,5]
[425097122,1781491840000,-225.18697532,0.00021594,2]
[425097142,1781491840000,-800.0,0.00021918,2]
[425097125,1781491840000,-151.0,0.00021594,2]
[425097127,1781491840000,-500.0,0.00021655,2]
[425097209,1781491841000,-924.0,0.00023,2]
[425097198,1781491841000,-1305.20462618,0.000227,2]
[425097196,1781491841000,-448.21,0.00022691,2]
[425097202,1781491841000,-10000.0,0.00023,2]
[425097201,1781491841000,-551.0,0.00022936,5]
[425097204,1781491841000,-1418.689983,0.00023,2]
[425097205,1781491841000,-182.0,0.00023,2]
[425097206,1781491841000,-660.0,0.00023,2]
[425097207,1781491841000,-255.0,0.00023,2]
[425097199,1781491841000,-1352.00387117,0.00022868,2]
[425097203,1781491841000,-200.0,0.00023,2]
[425097211,1781491841000,-449.0,0.00023,2]
[425097212,1781491841000,-241.0,0.00023,2]
[425097214,1781491841000,-328.39999386,0.00023,2]
[425097215,1781491841000,-227.0,0.00023,2]
[425097210,1781491841000,-156.0,0.00023,2]
[425097216,1781491841000,-618.0,0.00023,2]
[425097213,1781491841000,-275.0,0.00023,2]
[425097219,1781491841000,-500.0,0.00023089,2]
[425097218,1781491841000,-1932.0,0.00023,2]
[425097220,1781491841000,-500.0,0.00023089,2]
[425097200,1781491841000,-293.52,0.00022876,2]
[425097222,1781491841000,-500.0,0.00023089,2]
[425097208,1781491841000,-268.0,0.00023,2]
[425097197,1781491841000,-288.16,0.00022695,2]
[425097179,1781491841000,-961.7,0.00022353,2]
[425097193,1781491841000,-242.15909246,0.0002269,2]
[425097223,1781491841000,-500.0,0.00023089,2]
[425097170,1781491841000,-194.72792766,0.00022142,2]
[425097171,1781491841000,-233.5188934,0.00022142,2]
[425097172,1781491841000,-254.17774181,0.00022142,2]
[425097180,1781491841000,-180.08459866,0.00022355,2]
[425097181,1781491841000,-1352.00387117,0.00022374,2]
[425097174,1781491841000,-151.0,0.00022142,2]
[425097175,1781491841000,-624.05,0.00022145,2]
[425097177,1781491841000,-1121.43,0.00022145,2]
[425097178,1781491841000,-3179.86786846,0.00022258,2]
[425097173,1781491841000,-2319.72410669,0.00022142,2]
[425097195,1781491841000,-151.0,0.0002269,2]
[425097176,1781491841000,-624.05,0.00022145,2]
[425097182,1781491841000,-243.86531756,0.00022407,2]
[425097184,1781491841000,-209.71320837,0.00022407,2]
[425097185,1781491841000,-209.71320837,0.00022407,2]
[425097187,1781491841000,-176.25,0.00022466,2]
[425097188,1781491841000,-518.97,0.00022466,2]
[425097189,1781491841000,-470.21437661,0.0002269,2]
[425097186,1781491841000,-404.74,0.00022463,2]
[425097190,1781491841000,-154.67963625,0.0002269,2]
[425097192,1781491841000,-201.93286098,0.0002269,2]
[425097191,1781491841000,-200.0,0.0002269,2]
[425097194,1781491841000,-2405.55389863,0.0002269,2]
[425097183,1781491841000,-209.71320839,0.00022407,2]
[425097221,1781491841000,-500.0,0.00023089,2]
[425097229,1781491841000,-500.0,0.00023089,2]
[425097227,1781491841000,-500.0,0.00023089,2]
[425097257,1781491841000,-150.0,0.00023288,2]
[425097254,1781491841000,-251.11897888,0.00023238,2]
[425097255,1781491841000,-2494.55939288,0.00023238,2]
[425097256,1781491841000,-151.0,0.00023238,2]
[425097259,1781491841000,-270.707151,0.00023699,7]
[425097258,1781491841000,-1352.00387117,0.00023361,2]
[425097264,1781491841000,-2000.0,0.0002375,2]
[425097260,1781491841000,-500.0,0.00023749,2]
[425097261,1781491841000,-500.0,0.00023749,2]
[425097266,1781491841000,-341214.15324052,0.0002375,2]
[425097262,1781491841000,-500.0,0.00023749,2]
[425097253,1781491841000,-209.40437684,0.00023238,2]
[425097267,1781491841000,-470.21437661,0.00023786,2]
[425097263,1781491841000,-500.0,0.00023749,2]
[425097269,1781491841000,-217.15233878,0.00023786,2]
[425097268,1781491841000,-154.67963625,0.00023786,2]
[425097270,1781491841000,-336.42071641,0.00023786,2]
[425097272,1781491841000,-2586.85809042,0.00023786,2]
[425097271,1781491841000,-260.4103811,0.00023786,2]
[425097277,1781491841000,-689.0,0.00023988,5]
[425097276,1781491841000,-3304.0,0.00023985,3]
[425097226,1781491841000,-500.0,0.00023089,2]
[425097275,1781491841000,-3179.86786846,0.00023981,2]
[425097274,1781491841000,-1352.00387117,0.00023855,2]
[425097265,1781491841000,-10000.0,0.0002375,2]
[425097251,1781491841000,-154.67963625,0.00023238,2]
[425097273,1781491841000,-151.0,0.00023786,2]
[425097250,1781491841000,-470.21437661,0.00023238,2]
[425097252,1781491841000,-200.0,0.00023238,2]
[425097228,1781491841000,-500.0,0.00023089,2]
[425097224,1781491841000,-500.0,0.00023089,2]
[425097231,1781491841000,-166.9941329,0.0002309,2]
[425097230,1781491841000,-544.0,0.0002309,5]
[425097233,1781491841000,-300.0,0.0002309,7]
[425097232,1781491841000,-191.664402,0.0002309,2]
[425097234,1781491841000,-3000.0,0.0002309,2]
[425097235,1781491841000,-157.80448151,0.000231,2]
[425097236,1781491841000,-3179.86786846,0.00023119,2]
[425097237,1781491841000,-500.0,0.00023189,2]
[425097225,1781491841000,-500.0,0.00023089,2]
[425097240,1781491841000,-1275.0,0.0002319,2]
[425097248,1781491841000,-599.60298507,0.00023237,2]
[425097238,1781491841000,-3558.0,0.0002319,2]
[425097247,1781491841000,-151.0,0.00023237,2]
[425097246,1781491841000,-225.18697532,0.00023236,2]
[425097245,1781491841000,-274.81922984,0.000232,30]
[425097249,1781491841000,-747.80937859,0.00023237,2]
[425097244,1781491841000,-3645.0,0.0002319,2]
[425097242,1781491841000,-1228.0,0.0002319,2]
[425097243,1781491841000,-934.0,0.0002319,2]
[425097239,1781491841000,-1359.0,0.0002319,2]
[425097241,1781491841000,-631.0,0.0002319,2]
[425097305,1781491842000,-154.67963625,0.00024334,2]
[425097313,1781491842000,-1169.28,0.00024658,2]
[425097303,1781491842000,-961.7,0.00024324,2]
[425097306,1781491842000,-225.18697532,0.00024334,2]
[425097307,1781491842000,-270.0455652,0.00024334,2]
[425097308,1781491842000,-2682.57183977,0.00024334,2]
[425097309,1781491842000,-151.0,0.00024334,2]
[425097311,1781491842000,-2351.0,0.0002436,3]
[425097312,1781491842000,-13964.7969953,0.000245,2]
[425097310,1781491842000,-1352.00387117,0.00024348,2]
[425097317,1781491842000,-500.0,0.00024658,2]
[425097316,1781491842000,-500.0,0.00024658,2]
[425097318,1781491842000,-500.0,0.00024658,2]
[425097323,1781491842000,-500.0,0.00024658,2]
[425097321,1781491842000,-500.0,0.00024658,2]
[425097315,1781491842000,-150.0,0.00024658,2]
[425097322,1781491842000,-500.0,0.00024658,2]
[425097319,1781491842000,-500.0,0.00024658,2]
[425097320,1781491842000,-500.0,0.00024658,2]
[425097304,1781491842000,-470.21437661,0.00024334,2]
[425097324,1781491842000,-500.0,0.00024658,2]
[425097314,1781491842000,-1000.0,0.00024658,2]
[425097301,1781491842000,-9252.66,0.00024174,2]
[425097289,1781491842000,-241.0,0.00024,2]
[425097300,1781491842000,-12758.93,0.00024174,2]
[425097325,1781491842000,-500.0,0.00024658,2]
[425097278,1781491842000,-500.0,0.00024,2]
[425097279,1781491842000,-200.0,0.00024,2]
[425097280,1781491842000,-1418.689983,0.00024,2]
[425097281,1781491842000,-182.0,0.00024,2]
[425097282,1781491842000,-20657.05,0.00024,2]
[425097286,1781491842000,-924.0,0.00024,2]
[425097287,1781491842000,-156.0,0.00024,2]
[425097285,1781491842000,-268.0,0.00024,2]
[425097283,1781491842000,-660.0,0.00024,2]
[425097302,1781491842000,-396.04,0.00024264,2]
[425097288,1781491842000,-449.0,0.00024,2]
[425097290,1781491842000,-275.0,0.00024,2]
[425097291,1781491842000,-234.24074205,0.00024,2]
[425097292,1781491842000,-618.0,0.00024,2]
[425097296,1781491842000,-1305.20462618,0.000241,2]
[425097295,1781491842000,-193.0,0.00024089,2]
[425097294,1781491842000,-1932.0,0.00024,2]
[425097293,1781491842000,-150.0,0.00024,2]
[425097297,1781491842000,-482.28,0.00024152,2]
[425097298,1781491842000,-723.8,0.00024174,2]
[425097299,1781491842000,-6717.5,0.00024174,2]
[425097284,1781491842000,-255.0,0.00024,2]
[425097328,1781491842000,-500.0,0.00024658,2]
[425097366,1781491842000,-500.0,0.00024899,2]
[425097329,1781491842000,-500.0,0.00024658,2]
[425097357,1781491842000,-500.0,0.00024899,2]
[425097354,1781491842000,-500.0,0.00024899,2]
[425097356,1781491842000,-500.0,0.00024899,2]
[425097360,1781491842000,-166.08457987,0.00024899,20]
[425097358,1781491842000,-500.0,0.00024899,2]
[425097361,1781491842000,-500.0,0.00024899,2]
[425097363,1781491842000,-500.0,0.00024899,2]
[425097364,1781491842000,-500.0,0.00024899,2]
[425097362,1781491842000,-500.0,0.00024899,2]
[425097367,1781491842000,-500.0,0.00024899,2]
[425097370,1781491842000,-500.0,0.00024899,2]
[425097368,1781491842000,-500.0,0.00024899,2]
[425097365,1781491842000,-500.0,0.00024899,2]
[425097371,1781491842000,-500.0,0.00024899,2]
[425097372,1781491842000,-940196.93842749,0.000249,3]
[425097373,1781491842000,-837947.35361005,0.000249,2]
[425097377,1781491842000,-457.34,0.00023089,2]
[425097378,1781491842000,-1038.21618825,0.000249,2]
[425097374,1781491842000,-470.3606827,0.000249,2]
[425097379,1781491842000,-662.14357056,0.000249,2]
[425097326,1781491842000,-500.0,0.00024658,2]
[425097352,1781491842000,-500.0,0.00024899,2]
[425097355,1781491842000,-500.0,0.00024899,2]
[425097359,1781491842000,-250.0080347,0.00024899,2]
[425097351,1781491842000,-151.0,0.00024897,7]
[425097330,1781491842000,-500.0,0.00024658,2]
[425097334,1781491842000,-1309.79,0.00024694,7]
[425097327,1781491842000,-500.0,0.00024658,2]
[425097353,1781491842000,-500.0,0.00024899,2]
[425097332,1781491842000,-500.0,0.00024658,2]
[425097331,1781491842000,-500.0,0.00024658,2]
[425097335,1781491842000,-404.74,0.00024709,2]
[425097336,1781491842000,-424.48798,0.0002475,2]
[425097337,1781491842000,-424.48798,0.0002475,2]
[425097345,1781491842000,-154.67963636,0.00024882,2]
[425097338,1781491842000,-424.48798,0.0002475,2]
[425097333,1781491842000,-644.44069364,0.00024658,2]
[425097344,1781491842000,-470.21437661,0.00024882,2]
[425097341,1781491842000,-453.28565696,0.000248,2]
[425097349,1781491842000,-151.0,0.00024882,2]
[425097348,1781491842000,-2781.82699784,0.00024882,2]
[425097346,1781491842000,-233.5188934,0.00024882,2]
[425097347,1781491842000,-280.03725111,0.00024882,2]
[425097350,1781491842000,-151.0,0.00024897,7]
[425097340,1781491842000,-210.01209058,0.000248,2]
[425097343,1781491842000,-3179.86786846,0.00024842,2]
[425097339,1781491842000,-500.0,0.00024799,2]
[425097342,1781491842000,-1352.00387117,0.00024842,2]